bitfinex/quotes_ETHUSD_20241104
["timestamp","ask_amount","ask_price","bid_price","bid_amount"]
[1730733212411,0.8107,2448.2,2447.8,4.08523]
[1730733212609,0.8107,2448.2,2447.9,4.0851]
[1730733213308,0.8107,2448.2,2447.8,4.08523]
[1730733214276,0.8107,2448.2,2447.8,4.08522]
[1730733215012,0.8107,2448.2,2447.8,4.08528]
[1730733215547,1.26550346,2448.8,2447.8,4.62189085]
[1730733215670,0.7578,2448.8,2448.1,4.62189085]
[1730733215874,0.7578,2448.8,2448.3,4.08446]
[1730733216184,0.7578,2448.8,2448.4,4.0842]
[1730733216575,0.7578,2448.8,2448.5,4.08406]
[1730733216773,4.0833,2449.0,2448.4,4.84236]
[1730733217014,4.08348,2448.9,2448.4,4.84236]
[1730733217217,4.08362,2448.9,2448.4,4.84232]
[1730733217453,4.08362,2448.9,2448.4,8.16842]
[1730733217572,4.9883926,2449.1,2448.4,8.16842]
[1730733217573,4.90693,2449.1,2448.5,4.08411]
[1730733217773,8.9902,2449.1,2448.6,4.16563085]
[1730733217996,8.9902,2449.1,2448.6,4.08396]
[1730733218209,4.0833,2449.0,2448.6,4.08396]
[1730733218515,4.1647626,2449.0,2448.5,4.08411]
[1730733218818,4.1647626,2449.0,2448.4,4.08427]
[1730733218980,4.1647626,2449.0,2448.5,4.08403]
[1730733219390,4.0833,2449.0,2448.4,4.08427]
[1730733219593,4.08346,2448.9,2448.4,4.08427]
[1730733219885,8.16673,2449.0,2448.5,4.08402]
[1730733220210,4.0833,2449.0,2448.4,4.08427]
[1730733220402,4.08354,2448.9,2448.4,4.08422]
[1730733221691,4.08354,2448.9,2448.2,4.85909]
[1730733221692,4.0838,2448.7,2448.2,0.7746]
[1730733221899,4.08387,2448.7,2448.3,0.23194558]
[1730733222200,4.08387,2448.7,2448.2,4.85921]
[1730733222411,0.8314,2448.6,2448.2,4.08461]
[1730733222616,0.8314,2448.6,2448.3,0.23201278]
[1730733222819,0.8314,2448.6,2448.2,8.16915]
[1730733223030,0.8314,2448.6,2448.3,0.2320089]
[1730733223434,4.1652226,2448.8,2448.3,4.0844]
[1730733223596,4.91516,2448.8,2448.3,8.16876]
[1730733223935,8.16685,2449.0,2448.5,4.08401]
[1730733224095,0.8314,2449.1,2448.4,4.08417]
[1730733224293,0.8314,2448.6,2448.2,4.0845]
[1730733224527,4.08362,2448.9,2448.4,4.08413]
[1730733224528,4.91498,2448.9,2448.4,4.08413]
[1730733224831,4.08296,2449.2,2448.6,4.08383]
[1730733225032,4.08296,2449.2,2448.5,4.08405]
[1730733225033,4.83264,2449.5,2448.5,4.7121948]
[1730733225188,4.83265,2449.5,2449.0,4.08322]
[1730733225689,4.08265,2449.4,2449.0,4.08322]
[1730733226430,4.83258,2449.5,2449.0,8.16642]
[1730733226635,4.91125,2449.8,2449.3,4.08263]
[1730733226806,4.91125,2449.8,2449.1,4.6999948]
[1730733227003,4.91125,2449.8,2449.2,4.08288]
[1730733227004,4.08219,2449.7,2449.2,4.08288]
[1730733227206,4.08219,2449.7,2449.1,4.87495]
[1730733227207,4.08243,2449.6,2449.1,4.87495]
[1730733228633,4.573329,2449.7,2449.1,4.87495]
[1730733228634,4.08246,2449.5,2449.1,4.87495]
[1730733228833,4.08263,2449.4,2449.0,4.08327]
[1730733229241,4.0828,2449.3,2448.9,4.08338]
[1730733229423,4.8877,2449.3,2448.8,0.7941]
[1730733229594,4.8877,2449.3,2448.9,0.23184118]
[1730733230293,4.08312,2449.2,2448.9,0.23184118]
[1730733230500,8.16622,2449.2,2448.8,0.23184118]
[1730733230742,4.08346,2448.9,2448.6,0.37096381]
[1730733230914,4.08389,2448.7,2448.6,0.23185307]
[1730733231237,4.08389,2448.7,2448.0,1.1951674]
[1730733231238,4.08389,2448.7,2448.3,4.08443]
[1730733231530,4.08389,2448.7,2448.2,4.08449]
[1730733231893,4.08389,2448.7,2448.3,0.23198781]
[1730733232290,4.08397,2448.6,2448.2,4.08449]
[1730733232490,4.08389,2448.7,2448.3,0.23202222]
[1730733232739,4.08389,2448.7,2448.2,4.08449]
[1730733232740,4.08388,2448.7,2448.2,4.08449]
[1730733232949,4.0842,2448.5,2448.0,4.89355]
[1730733233111,4.0842,2448.5,2448.1,0.23204636]
[1730733233448,4.08399,2448.6,2448.2,0.23204636]
[1730733233749,4.08414,2448.5,2448.3,0.23204636]
[1730733233952,4.08414,2448.5,2448.2,0.2320714]
[1730733234254,4.08414,2448.5,2448.1,4.08469]
[1730733234550,4.08414,2448.5,2448.2,0.23209657]
[1730733234852,4.08399,2448.6,2448.3,0.23209657]
[1730733235011,8.16805,2448.6,2448.1,4.08469]
[1730733235356,4.08399,2448.6,2448.2,0.23208602]
[1730733235521,4.08437,2448.4,2448.0,0.37135556]
[1730733235723,4.08437,2448.4,2448.1,0.23210665]
[1730733235724,4.87237,2448.4,2448.1,0.23210665]
[1730733235910,4.87237,2448.4,2448.2,0.23210665]
[1730733236109,4.87237,2448.4,2448.1,0.23211742]
[1730733236313,4.87237,2448.4,2448.0,4.08486]
[1730733236623,4.87237,2448.4,2447.9,4.45648479]
[1730733236830,4.87237,2448.4,2448.0,4.31700383]
[1730733237053,4.87237,2448.4,2448.1,0.2321057]
[1730733237212,4.87237,2448.4,2448.0,4.08489]
[1730733237415,4.87237,2448.4,2448.1,0.23211551]
[1730733237653,0.788,2448.4,2448.1,4.08478]
[1730733239053,0.788,2448.4,2448.0,4.08494]
[1730733239212,0.788,2448.4,2448.1,0.23211635]
[1730733239416,0.788,2448.4,2448.0,4.08494]
[1730733239617,0.788,2448.4,2448.1,0.23212807]
[1730733239816,0.788,2448.4,2448.0,4.456364]
[1730733240060,0.788,2448.4,2448.0,4.08494]
[1730733240260,0.788,2448.4,2448.1,0.23212563]
[1730733240415,4.0848,2448.1,2447.8,0.37141894]
[1730733240619,4.08459,2448.3,2447.9,0.23212518]
[1730733240858,4.08459,2448.3,2447.6,4.45694894]
[1730733240859,4.08465,2448.2,2447.7,8.40287518]
[1730733241172,4.08465,2448.2,2447.8,0.23212518]
[1730733241453,4.08465,2448.2,2447.7,8.17075]
[1730733241655,4.08465,2448.2,2447.8,0.23212702]
[1730733241857,4.08465,2448.2,2447.7,4.08536]
[1730733242032,0.8016,2447.9,2447.8,0.23213228]
[1730733242227,0.8016,2447.9,2447.6,0.37142958]
[1730733242228,0.8016,2447.9,2447.7,0.23214905]
[1730733242466,0.8016,2447.9,2447.6,4.08563]
[1730733242649,0.8016,2447.9,2447.7,0.23212196]
[1730733242820,0.8016,2447.9,2447.6,4.08563]
[1730733243155,0.8016,2447.9,2447.7,0.23214583]
[1730733243359,0.8016,2447.9,2447.6,4.08563]
[1730733243565,0.8016,2447.9,2447.7,0.2321223]
[1730733243768,0.8016,2447.9,2447.6,4.08563]
[1730733243970,0.8016,2447.9,2447.7,0.23212534]
[1730733244370,0.8016,2447.9,2447.6,4.08563]
[1730733244540,0.8016,2447.9,2447.7,0.23211031]
[1730733244876,0.8016,2447.9,2447.6,4.08563]
[1730733245173,0.8016,2447.9,2447.7,0.23211022]
[1730733245333,0.8109,2448.2,2447.8,0.0817016]
[1730733245533,4.89555,2448.2,2447.7,4.08546]
[1730733245730,4.89555,2448.2,2447.8,4.08521]
[1730733245972,4.89555,2448.2,2447.9,0.23208085]
[1730733246177,4.8953,2448.4,2447.9,4.166753]
[1730733246348,4.8953,2448.4,2448.0,4.31700301]
[1730733246670,4.0846,2448.3,2447.8,4.08526]
[1730733246971,4.0846,2448.3,2447.9,4.39879758]
[1730733247145,4.0846,2448.3,2447.9,4.16675301]
[1730733247739,4.0846,2448.3,2447.9,4.08506]
[1730733248075,4.0846,2448.3,2448.0,0.23202679]
[1730733248251,4.0846,2448.3,2447.9,4.08506]
[1730733248431,4.8952,2448.4,2447.9,4.08502]
[1730733248637,4.08409,2448.6,2448.0,0.23200786]
[1730733248638,4.1657226,2448.5,2448.0,0.23200786]
[1730733248863,4.08447,2448.3,2447.8,4.08529]
[1730733249081,4.08447,2448.3,2447.5,4.37195816]
[1730733249082,4.08563,2447.6,2447.5,4.37195816]
[1730733249579,5.45113,2447.6,2447.5,4.37195816]
[1730733249750,4.6363,2447.2,2447.1,0.5]
[1730733250236,4.7177626,2447.2,2447.1,0.5]
[1730733250439,6.36675486,2447.2,2447.1,0.5]
[1730733251275,4.9363626,2447.2,2447.1,0.5]
[1730733252074,0.7686,2447.2,2447.1,0.5]
[1730733253562,4.8549,2447.2,2447.1,0.5]
[1730733254369,5.4863626,2447.2,2447.1,0.5]
[1730733256001,0.7686,2447.2,2447.1,0.5]
[1730733256288,4.08616,2447.3,2447.1,0.5]
[1730733256442,4.08551,2447.7,2447.1,0.5]
[1730733256443,8.17122,2447.7,2447.1,0.5]
[1730733256637,0.8308,2447.8,2447.1,0.5]
[1730733256638,0.0814626,2447.6,2447.1,0.5]
[1730733256841,4.08625,2447.3,2447.1,0.5]
[1730733257052,4.08604,2447.4,2447.1,0.5]
[1730733257582,8.17149,2447.6,2447.1,4.58645]
[1730733257781,4.08574,2447.6,2447.2,4.08628]
[1730733258187,4.08574,2447.6,2447.1,4.58644]
[1730733258688,8.1715,2447.6,2447.1,4.58644]
[1730733258931,4.08574,2447.6,2447.1,4.58644]
[1730733259423,8.17148,2447.6,2447.1,4.58644]
[1730733259593,4.08574,2447.6,2447.1,4.58644]
[1730733259996,8.17148,2447.6,2447.1,4.58644]
[1730733260594,8.17147,2447.6,2447.1,4.58644]
[1730733261115,4.91619,2447.8,2447.3,4.08602]
[1730733261316,0.0814626,2447.7,2447.1,4.58646]
[1730733261523,4.08572,2447.6,2447.1,4.58646]
[1730733262195,4.91617,2447.8,2447.2,4.31792524]
[1730733262568,4.08548,2447.7,2447.3,4.08605]
[1730733262724,4.08548,2447.7,2447.2,4.08617]
[1730733262725,4.08548,2447.7,2447.2,4.08628]
[1730733262881,4.08548,2447.7,2447.3,4.08611]
[1730733263084,8.1711,2447.7,2447.2,4.08628]
[1730733263293,4.08548,2447.7,2447.2,4.08628]
[1730733263583,4.08548,2447.7,2447.3,0.23184185]
[1730733263584,4.577108,2447.7,2447.3,0.23184185]
[1730733263782,4.577108,2447.7,2447.2,4.08628]
[1730733263783,8.17104,2447.7,2447.2,4.0862]
[1730733263982,4.08566,2447.6,2447.3,0.23183965]
[1730733264335,4.1673526,2447.5,2447.1,0.87096487]
[1730733264478,4.1673526,2447.5,2447.2,0.23190394]
[1730733264479,4.08627,2447.3,2447.2,0.23190394]
[1730733264682,4.0863,2447.2,2447.1,0.5]
[1730733265081,4.1677626,2447.2,2447.1,0.5]
[1730733265729,4.0863,2447.2,2447.1,0.5]
[1730733266028,0.8716626,2447.4,2447.1,0.5]
[1730733266029,4.8762,2447.4,2447.1,0.5]
[1730733266345,0.7902,2447.4,2447.1,0.5]
[1730733266711,0.7902,2447.4,2447.2,0.23201516]
[1730733266914,4.1672826,2447.5,2447.1,4.58646]
[1730733267153,4.08601,2447.4,2447.2,0.23201494]
[1730733267449,4.08601,2447.4,2447.1,0.5]
[1730733267603,0.0814626,2447.4,2447.1,0.5]
[1730733267900,4.08599,2447.4,2447.2,0.23208682]
[1730733268102,4.08599,2447.4,2447.1,0.5]
[1730733268345,4.08599,2447.4,2447.2,0.23207833]
[1730733268653,0.0814626,2447.5,2447.1,0.87146263]
[1730733268654,4.1672726,2447.5,2447.1,0.87146263]
[1730733268859,4.08598,2447.4,2447.2,0.23216286]
[1730733269145,4.08598,2447.4,2447.1,0.5]
[1730733269333,4.08598,2447.4,2447.2,0.23224967]
[1730733269531,4.08598,2447.4,2447.1,0.5]
[1730733269737,4.08598,2447.4,2447.2,0.23224923]
[1730733269918,4.08598,2447.4,2447.3,0.23224923]
[1730733270124,4.08598,2447.4,2447.1,0.5]
[1730733270125,4.08615,2447.3,2447.1,0.5]
[1730733270310,4.08615,2447.3,2447.2,0.23223382]
[1730733270499,4.0858,2447.5,2447.2,0.23224575]
[1730733270849,4.08596,2447.4,2447.3,0.23224575]
[1730733271002,0.0814626,2447.5,2447.3,0.23224575]
[1730733271211,1.26464905,2448.4,2447.4,0.23223838]
[1730733271212,0.8287,2447.9,2447.4,0.23223838]
[1730733271411,4.08555,2447.7,2447.5,0.23223838]
[1730733271712,4.08552,2447.7,2447.1,0.5]
[1730733271911,4.08552,2447.7,2447.2,0.60390133]
[1730733271912,4.08566,2447.6,2447.2,0.60390133]
[1730733272137,4.08566,2447.6,2447.3,0.60390133]
[1730733272352,4.08566,2447.6,2447.4,0.23225842]
[1730733272511,4.08566,2447.6,2447.5,0.23225842]
[1730733272711,4.08566,2447.6,2447.2,4.0863]
[1730733272923,4.08566,2447.6,2447.5,0.23229365]
[1730733273123,4.08552,2447.7,2447.5,0.23229365]
[1730733273328,8.17111,2447.7,2447.5,0.23229365]
[1730733273609,4.08563,2447.6,2447.2,4.0863]
[1730733273809,4.08563,2447.6,2447.3,0.23231042]
[1730733274014,4.08563,2447.6,2447.4,0.60402504]
[1730733274257,4.08563,2447.6,2447.5,0.23231042]
[1730733274639,0.7568,2448.2,2447.7,4.08545]
[1730733274821,0.7568,2448.2,2447.8,0.23237251]
[1730733274822,4.1662726,2448.1,2447.8,0.23237251]
[1730733275027,4.08509,2448.0,2447.6,0.37181291]
[1730733275331,4.08509,2448.0,2447.7,0.60418574]
[1730733275534,4.08509,2448.0,2447.8,0.23237575]
[1730733275715,4.08509,2448.0,2447.9,0.23237575]
[1730733276062,4.7165526,2448.0,2447.9,0.23237575]
[1730733276277,5.17159959,2448.0,2447.7,0.37181939]
[1730733276416,4.1665526,2448.0,2447.5,4.08569]
[1730733276771,4.1665226,2448.0,2447.6,0.60441233]
[1730733277057,4.1665226,2448.0,2447.5,4.08569]
[1730733277058,4.08506,2448.0,2447.7,0.60445545]
[1730733277355,4.08506,2448.0,2447.8,0.23245878]
[1730733277617,4.84157,2448.2,2447.9,0.23245878]
[1730733277772,4.08483,2448.1,2447.7,4.08546]
[1730733278280,4.08483,2448.1,2447.8,0.60459443]
[1730733278459,4.08483,2448.1,2447.9,0.23253498]
[1730733278773,9.43981354,2448.1,2448.0,0.23253498]
[1730733278926,4.0858,2447.5,2447.1,0.5]
[1730733279134,4.1675126,2447.4,2447.1,0.5]
[1730733279460,4.87,2447.2,2447.1,0.5]
[1730733279628,4.9514626,2447.2,2447.1,0.5]
[1730733280243,5.5014626,2447.2,2447.1,0.73262357]
[1730733280572,5.5014626,2447.2,2447.1,0.73264052]
[1730733280744,6.85146221,2447.2,2447.1,0.5]
[1730733283041,6.85146221,2447.2,2446.7,0.0604162]
[1730733283042,9.30324354,2446.8,2446.7,0.0604162]
[1730733283240,9.31324354,2446.8,2446.7,0.0604162]
[1730733284782,12.31324354,2446.8,2446.7,6.2e-06]
[1730733284992,12.31324354,2446.8,2445.7,0.005]
[1730733284993,4.08864,2445.8,2445.7,0.005]
[1730733285289,4.08847,2445.9,2445.7,0.23721652]
[1730733285581,4.08831,2446.0,2445.7,0.005]
[1730733285786,4.08848,2445.9,2445.7,0.005]
[1730733285950,4.08825,2446.1,2445.7,0.005]
[1730733286150,0.55,2445.9,2445.8,0.23198474]
[1730733286369,4.08833,2446.0,2445.7,0.005]
[1730733286575,4.08864,2445.8,2445.7,0.005]
[1730733286746,4.08846,2446.0,2445.7,0.005]
[1730733286947,4.1699226,2446.0,2445.7,0.005]
[1730733287187,4.08849,2445.9,2445.7,0.005]
[1730733287398,4.08846,2446.0,2445.7,0.005]
[1730733287399,8.17689,2446.0,2445.7,0.005]
[1730733287607,4.08843,2446.0,2445.7,0.005]
[1730733287897,4.08864,2445.8,2445.7,0.005]
[1730733288187,4.08858,2445.9,2445.7,0.005]
[1730733288595,4.1700426,2445.9,2445.7,0.005]
[1730733288910,4.08858,2445.9,2445.7,0.005]
[1730733289507,4.08864,2445.8,2445.7,0.005]
[1730733289666,4.08858,2445.9,2445.7,0.005]
[1730733290204,4.08832,2446.0,2445.7,0.005]
[1730733290360,4.08785,2446.3,2445.8,4.86274]
[1730733290562,4.08814,2446.1,2445.7,0.005]
[1730733290783,0.0814626,2446.0,2445.7,0.005]
[1730733291249,4.08814,2446.1,2445.7,0.005]
[1730733291771,4.577445,2446.3,2445.7,0.005]
[1730733291772,8.665355,2446.3,2445.8,4.08855]
[1730733291957,8.665355,2446.3,2445.7,4.17556643]
[1730733291958,0.0814626,2446.2,2445.7,0.005]
[1730733292167,4.08821,2446.1,2445.7,0.005]
[1730733292348,8.17648,2446.1,2445.7,0.005]
[1730733292691,4.08798,2446.2,2445.7,4.17545649]
[1730733292903,4.1694426,2446.2,2445.7,4.09369]
[1730733293109,4.0876,2446.5,2446.0,4.08827]
[1730733293263,4.08756,2446.5,2446.0,4.17002775]
[1730733293465,4.1691126,2446.4,2445.9,8.99334]
[1730733293706,0.0814626,2446.4,2446.0,4.08829]
[1730733293874,0.0814626,2446.4,2445.9,4.90487]
[1730733294074,4.08776,2446.4,2445.9,8.99325]
[1730733294297,4.08776,2446.4,2445.9,0.8165]
[1730733294467,4.08776,2446.4,2445.9,4.9049]
[1730733294667,4.08776,2446.4,2445.9,0.8165]
[1730733294966,4.08776,2446.4,2445.7,4.0938]
[1730733294967,4.08797,2446.2,2445.7,4.0938]
[1730733295167,4.9366626,2446.3,2445.8,4.08855]
[1730733295168,8.94311,2446.3,2445.8,4.08855]
[1730733295667,4.08798,2446.2,2445.8,4.08855]
[1730733296312,0.7674,2446.3,2445.7,0.005]
[1730733296531,4.08825,2446.1,2445.7,0.08676749]
[1730733296732,4.08831,2446.0,2445.7,0.005]
[1730733296928,4.0885,2445.9,2445.7,0.005]
[1730733297237,4.08815,2446.1,2445.7,0.005]
[1730733297392,4.08815,2446.1,2445.7,0.08676752]
[1730733297745,4.08815,2446.1,2445.7,0.005]
[1730733298033,4.08815,2446.1,2445.7,4.09379]
[1730733298420,4.08861,2445.9,2445.7,0.005]
[1730733298734,4.08847,2445.9,2445.7,0.005]
[1730733298936,4.08844,2446.0,2445.7,0.005]
[1730733299493,4.08843,2446.0,2445.7,0.005]
[1730733299719,8.17687,2446.0,2445.7,0.005]
[1730733300444,1.28636958,2446.3,2445.8,4.08856]
[1730733300445,4.59751958,2446.3,2445.8,4.08856]
[1730733300599,4.1695226,2446.2,2445.8,4.08856]
[1730733300801,4.08814,2446.1,2445.7,4.09379]
[1730733301145,0.0814626,2446.0,2445.7,0.005]
[1730733301435,4.1699026,2446.0,2445.7,0.005]
[1730733301594,4.08852,2445.9,2445.7,0.005]
[1730733301792,4.08864,2445.8,2445.7,0.005]
[1730733302291,0.0814626,2445.9,2445.7,0.005]
[1730733302521,4.08864,2445.8,2445.7,0.005]
[1730733302725,5.89669986,2445.8,2445.7,0.005]
[1730733302936,6.36523726,2445.8,2445.7,0.005]
[1730733304015,6.44669986,2445.8,2445.7,0.005]
[1730733304432,6.45669986,2445.8,2445.7,0.005]
[1730733304740,9.45669986,2445.8,2445.7,0.005]
[1730733304899,9.36523726,2445.8,2445.7,0.005]
[1730733305238,9.37523726,2445.8,2445.7,0.005]
[1730733306595,5.81523726,2445.8,2445.7,0.005]
[1730733306797,5.89669986,2445.8,2445.7,0.005]
[1730733307046,4.85438,2446.1,2445.7,0.005]
[1730733307351,0.7662,2446.4,2445.7,4.1754254]
[1730733307496,4.08822,2446.1,2445.7,0.005]
[1730733307689,0.0814626,2446.2,2445.7,0.005]
[1730733307934,0.0814626,2446.3,2445.7,0.005]
[1730733308129,0.7662,2446.4,2445.9,0.795]
[1730733308130,0.0814626,2446.4,2445.9,0.795]
[1730733308333,0.02,2447.0,2445.7,0.8313]
[1730733308334,4.08815,2446.1,2445.7,0.8313]
[1730733308570,4.08848,2445.9,2445.8,0.23226786]
[1730733308875,4.08848,2445.9,2445.8,0.23227069]
[1730733308876,4.90488,2445.9,2445.8,0.23227069]
[1730733309109,5.81234526,2445.9,2445.7,0.005]
[1730733309233,0.0814626,2445.8,2445.7,0.005]
[1730733309734,3.91237354,2446.3,2445.8,0.8067]
[1730733309735,4.08805,2446.2,2445.8,0.8067]
[1730733309981,0.0814626,2446.2,2445.7,0.005]
[1730733310282,4.08857,2445.9,2445.7,0.005]
[1730733310434,4.08864,2445.8,2445.7,0.005]
[1730733310630,0.0814626,2445.9,2445.7,0.23745083]
[1730733310830,4.90424,2446.3,2445.8,0.23245083]
[1730733310831,4.08812,2446.2,2445.8,0.23245083]
[1730733311139,4.09081,2444.5,2444.2,0.0604162]
[1730733311468,4.09115,2444.3,2444.2,0.0604162]
[1730733311673,4.1726126,2444.3,2444.2,0.0604162]
[1730733312379,4.7226126,2444.3,2444.2,0.0604162]
[1730733313139,4.09115,2444.3,2444.2,0.0604162]
[1730733313339,4.64115,2444.3,2444.2,0.0604162]
[1730733313579,10.71367599,2444.3,2444.2,0.0604162]
[1730733313781,4.63682678,2444.6,2444.2,0.0604162]
[1730733313945,9.27797678,2444.3,2444.2,0.0604162]
[1730733315599,4.64115,2444.3,2444.2,0.0604162]
[1730733315942,4.09115,2444.3,2444.2,0.0604162]
[1730733316125,4.88605,2444.8,2444.2,4.9086962]
[1730733316126,4.09031,2444.8,2444.2,4.9086962]
[1730733316334,4.09031,2444.8,2444.2,0.8175162]
[1730733316497,4.63682678,2445.2,2444.2,0.8175162]
[1730733316498,4.09073,2444.6,2444.2,0.8175162]
[1730733316698,4.09083,2444.5,2444.2,0.8175162]
[1730733316900,4.63682678,2444.9,2444.2,0.8175162]
[1730733317214,4.09053,2444.7,2444.2,0.8175162]
[1730733317543,4.09065,2444.6,2444.2,0.8175162]
[1730733317936,4.63682678,2444.6,2444.2,0.8175162]
[1730733318242,0.0814626,2444.7,2444.3,4.09112]
[1730733318538,4.09041,2444.8,2444.3,4.17292995]
[1730733318749,4.09041,2444.8,2444.2,4.9088262]
[1730733319049,4.09048,2444.7,2444.2,4.9088262]
[1730733319253,4.09042,2444.8,2444.3,4.09114]
[1730733319467,4.63682678,2445.2,2444.3,4.09114]
[1730733319468,4.63682678,2445.2,2444.4,3.0]
[1730733319757,4.09015,2444.9,2444.4,7.09097]
[1730733319918,0.0814626,2444.9,2444.3,3.0]
[1730733320113,4.09042,2444.8,2444.3,7.0911]
[1730733320366,4.1717226,2444.9,2444.4,4.09095]
[1730733320651,4.0901,2445.0,2444.3,3.0]
[1730733320858,4.0901,2445.0,2444.2,0.8175162]
[1730733321155,4.1715626,2445.0,2444.4,4.09082]
[1730733321358,4.0901,2445.0,2444.4,8.18168]
[1730733321513,8.2616626,2445.0,2444.4,4.09082]
[1730733321715,4.09018,2444.9,2444.4,8.18172]
[1730733321951,4.0901,2445.0,2444.4,8.18164]
[1730733322231,4.08936,2445.4,2444.9,4.09003]
[1730733322435,4.09026,2444.9,2444.7,0.7957]
[1730733322632,4.09026,2444.9,2444.1,0.01]
[1730733322633,4.09031,2444.8,2444.4,3.7957]
[1730733322847,4.09051,2444.7,2444.4,3.7957]
[1730733323087,4.09071,2444.6,2444.4,0.7957]
[1730733323297,4.09081,2444.5,2444.4,0.7957]
[1730733323479,4.09081,2444.5,2444.2,0.0604162]
[1730733323480,4.499891,2444.5,2444.2,0.0604162]
[1730733323681,4.09115,2444.3,2444.2,0.0604162]
[1730733324810,8.18222,2444.4,2444.2,0.0604162]
[1730733325120,4.09115,2444.3,2444.2,0.0604162]
[1730733325267,4.09108,2444.4,2444.2,0.0604162]
[1730733325469,4.09076,2444.6,2444.2,0.0604162]
[1730733325667,4.09115,2444.3,2444.2,0.0604162]
[1730733327409,4.091,2444.4,2444.2,0.0604162]
[1730733327568,0.0814626,2444.5,2444.2,0.0604162]
[1730733327771,4.09083,2444.5,2444.2,0.8560162]
[1730733327982,4.09077,2444.6,2444.2,0.8560162]
[1730733328385,4.09082,2444.5,2444.2,0.8560162]
[1730733329326,8.18157,2444.6,2444.2,0.8560162]
[1730733329626,4.09075,2444.6,2444.2,0.8560162]
[1730733329983,0.818119,2444.6,2444.2,0.8560162]
[1730733330328,4.09092,2444.5,2444.2,0.0604162]
[1730733330731,8.18184,2444.5,2444.2,0.0604162]
[1730733330936,4.09092,2444.5,2444.2,0.0604162]
[1730733331226,4.09066,2444.6,2444.2,4.1517062]
[1730733331434,4.09066,2444.6,2444.2,0.0604162]
[1730733332133,4.09066,2444.6,2444.2,0.29097219]
[1730733332428,4.09066,2444.6,2444.2,0.0604162]
[1730733332589,4.09066,2444.6,2444.2,0.29108228]
[1730733332791,4.09062,2444.7,2444.2,4.38231675]
[1730733333030,0.0814626,2444.8,2444.4,4.09096]
[1730733333245,4.09032,2444.8,2444.4,4.09096]
[1730733333403,0.0814626,2444.8,2444.4,4.09097]
[1730733333602,4.0904,2444.8,2444.3,4.86207]
[1730733334143,4.09065,2444.6,2444.4,0.23071154]
[1730733334429,4.09073,2444.6,2444.3,0.771]
[1730733334830,4.09056,2444.7,2444.3,1.00176146]
[1730733335044,8.18119,2444.7,2444.3,0.771]
[1730733335236,4.09073,2444.6,2444.4,0.23077322]
[1730733335396,4.09073,2444.6,2444.2,0.0604162]
[1730733335397,0.0814626,2444.5,2444.2,0.0604162]
[1730733335917,4.09078,2444.6,2444.2,0.0604162]
[1730733336121,4.09115,2444.3,2444.2,0.0604162]
[1730733336700,4.09084,2444.5,2444.2,0.0604162]
[1730733337038,8.18121,2444.7,2444.2,4.1517262]
[1730733337250,4.09082,2444.5,2444.2,0.0604162]
[1730733337394,9.53807368,2444.7,2444.2,4.1516762]
[1730733337595,9.53807368,2444.7,2444.2,0.0604162]
[1730733337596,4.09082,2444.5,2444.2,0.0604162]
[1730733337794,0.7898,2445.1,2444.3,0.7725]
[1730733338055,4.09038,2444.8,2444.3,0.7725]
[1730733339047,4.09052,2444.7,2444.3,0.7725]
[1730733339208,4.09052,2444.7,2444.4,0.23140024]
[1730733339405,4.09052,2444.7,2444.5,0.23140311]
[1730733339610,4.09053,2444.7,2444.3,0.7725]
[1730733339860,4.09053,2444.7,2444.4,0.23139069]
[1730733339861,4.1719926,2444.7,2444.4,0.23139069]
[1730733340149,4.09053,2444.7,2444.5,0.23167421]
[1730733340335,4.1719926,2444.7,2444.3,0.7725]
[1730733340538,4.1719926,2444.7,2444.4,0.23167388]
[1730733340849,4.09072,2444.6,2444.5,0.23167388]
[1730733341252,4.09072,2444.6,2444.2,0.0604162]
[1730733341455,0.51267814,2444.7,2444.3,0.23167812]
[1730733341638,0.51267814,2444.7,2444.4,0.23167812]
[1730733341862,4.09065,2444.6,2444.2,0.0604162]
[1730733342025,4.09065,2444.6,2444.3,0.23166495]
[1730733342225,4.09065,2444.6,2444.4,0.23166495]
[1730733342426,4.09065,2444.6,2444.5,0.23166495]
[1730733343057,4.60318814,2444.7,2444.5,0.23166495]
[1730733343262,4.60318814,2444.7,2444.2,4.1517062]
[1730733343574,4.09065,2444.6,2444.3,0.23176094]
[1730733343773,4.96818007,2444.6,2444.4,0.23176094]
[1730733344072,4.96818007,2444.6,2444.5,0.23176094]
[1730733344280,4.96818007,2444.6,2444.2,0.0604162]
[1730733344281,4.09088,2444.5,2444.2,0.0604162]
[1730733344427,0.87753007,2444.6,2444.3,0.23182099]
[1730733344634,4.09041,2444.8,2444.4,0.23182099]
[1730733344870,4.09041,2444.8,2444.5,0.23182099]
[1730733345170,4.09041,2444.8,2444.3,4.09108]
[1730733345376,4.09041,2444.8,2444.6,0.2318941]
[1730733345544,4.09041,2444.8,2444.7,0.2318941]
[1730733345885,8.18015,2445.0,2444.7,0.2318941]
[1730733346082,4.09057,2444.7,2444.3,3.7859]
[1730733346369,8.18071,2444.8,2444.4,0.23192107]
[1730733346575,4.908075,2445.0,2444.5,4.32261107]
[1730733346875,4.08967,2445.2,2444.7,0.8148]
[1730733347038,4.08993,2445.1,2444.8,0.23191831]
[1730733347239,4.1714326,2445.0,2444.9,0.23191831]
[1730733347448,4.1714326,2445.0,2444.7,0.8148]
[1730733347449,4.0902,2444.9,2444.7,0.8148]
[1730733347638,4.90779,2445.1,2444.8,0.23184278]
[1730733347838,4.09,2445.0,2444.9,0.23184278]
[1730733348035,4.08958,2445.3,2444.9,0.23184278]
[1730733348264,4.1707726,2445.4,2444.8,4.09023]
[1730733348568,4.1707726,2445.4,2444.9,4.32182709]
[1730733348782,1.29963757,2445.4,2445.0,4.32163709]
[1730733348933,5.38903757,2445.4,2445.1,0.23176709]